fUST/lending_fUST_20241223
["ID","MTS","AMOUNT","RATE_DAILY","PERIOD"]
[346404344,1734944342455,-1100.0,0.00025,30]
[346404345,1734944342481,-4500.0,0.00025,30]
[346404346,1734944342510,-4500.0,0.00025,30]
[346404347,1734944342535,-4500.0,0.00025,30]
[346404348,1734944342560,-4500.0,0.00025,30]
[346404349,1734944342586,-4500.0,0.00025,30]
[346404350,1734944342611,-4500.0,0.00025,30]
[346404351,1734944342636,-4500.0,0.00025,30]
[346404352,1734944342661,-4500.0,0.00025,30]
[346404353,1734944342685,-4500.0,0.00025,30]
[346404354,1734944342710,-4500.0,0.00025,30]
[346404355,1734944342736,-4500.0,0.00025,30]
[346404356,1734944342761,-499.3,0.00025,30]
[346404357,1734944342785,-500.0,0.00025,120]
[346404358,1734944342813,-500.0,0.00025,120]
[346404359,1734944342838,-194.252565,0.00025,120]
[346404360,1734944342867,-100000.0,0.00025366,30]
[346404361,1734944342893,-159580.34260922,0.000255,30]
[346404362,1734944347967,-271379.23803616,0.000255,30]
[346404363,1734944347999,-50226.89899628,0.00025641,120]
[346404364,1734944348025,-500.2202932,0.00026,30]
[346404365,1734944348051,-328585.19596042,0.00026,30]
[346404366,1734944348077,-124267.89344636,0.00026,30]
[346404367,1734944348102,-131132.91882421,0.00026,30]
[346404368,1734944348128,-93907.63444337,0.00026,30]
[346404369,1734944355501,-70292.89506532,0.00026,30]
[346404370,1734944355527,-189761.0521018,0.00026,30]
[346404371,1734944355552,-101808.64857512,0.00026,30]
[346404372,1734944355578,-117376.83370297,0.00026,30]
[346404373,1734944355603,-248645.35511713,0.00026,30]
[346404374,1734944355630,-272115.21543766,0.00026,30]
[346404375,1734944387222,-500.0,0.00026,120]
[346404376,1734944387248,-897.42257246,0.00026,60]
[346404377,1734944387276,-750.0,0.000268,120]
[346404378,1734944387302,-500.0,0.00027,120]
[346404379,1734944387327,-629.83893427,0.00027,120]
[346404380,1734944387352,-2425.83061723,0.00027,120]
[346404381,1734944387378,-400.0,0.00027397,60]
[346404382,1734944387404,-6250.0,0.00027397,120]
[346404383,1734944387431,-465.463,0.0002779,120]
[346404384,1734944387456,-1000.0,0.00028,120]
[346404385,1734944387481,-210695.98580219,0.00028,120]
[346404386,1734944387508,-465.396,0.0002899,120]
[346404387,1734944387534,-200.0,0.00029,120]
[346404388,1734944387560,-100000.0,0.00029366,120]
[346404389,1734944387585,-161.96425404,0.000299,120]
[346404390,1734944387610,-150.5,0.0002997,120]
[346404391,1734944387634,-282.43,0.0002997,120]
[346404392,1734944387660,-271.32,0.0002997,120]
[346404393,1734944387685,-2714.0,0.0002997,120]
[346404394,1734944387711,-2714.0,0.0002997,120]
[346404395,1734944387736,-150.5,0.0002998,120]
[346404396,1734944387763,-150.5,0.0002998,120]
[346404397,1734944387789,-150.5,0.0002998,120]
[346404398,1734944387814,-2714.0,0.0002998,120]
[346404399,1734944387839,-2714.0,0.0002998,120]
[346404400,1734944387866,-2714.0,0.0002998,120]
[346404401,1734944387891,-2718.57,0.0002998,120]
[346404402,1734944387916,-150.5,0.0002999,120]
[346404403,1734944387941,-150.5,0.0002999,120]
[346404404,1734944387966,-150.5,0.0002999,120]
[346404405,1734944387991,-251.65,0.0002999,120]
[346404406,1734944388017,-2714.0,0.0002999,120]
[346404407,1734944388044,-2714.0,0.0002999,120]
[346404408,1734944388069,-2714.0,0.0002999,120]
[346404409,1734944388097,-2714.0,0.0002999,120]
[346404410,1734944388123,-151.0,0.0003,120]
[346404411,1734944388148,-151.0,0.0003,120]
[346404412,1734944388173,-399.999999,0.0003,120]
[346404413,1734944388199,-2341.94758286,0.0003,60]
[346404414,1734944388226,-1000.0,0.0003,120]
[346404415,1734944388251,-2000.0,0.0003,120]
[346404416,1734944388279,-766.86916952,0.0003,120]
[346404417,1734944388304,-401.540788,0.0003,120]
[346404418,1734944388329,-2340.0,0.0003,90]
[346404419,1734944388356,-5164.75756255,0.0003005,120]
[346404420,1734944388381,-5164.75756255,0.0003005,120]
[346404421,1734944388406,-5164.75756255,0.0003005,120]
[346404422,1734944388432,-400.71237484,0.00030137,60]
[346404423,1734944388458,-465.464,0.0003019,120]
[346404424,1734944388483,-326.11845,0.000306,120]
[346404425,1734944388509,-1000.0,0.00031,120]
[346404426,1734944388536,-11497.26412083,0.00031,120]
[346404427,1734944388562,-1000.0,0.00031,120]
[346404428,1734944388588,-151.0,0.0003126,120]
[346404429,1734944388615,-465.389,0.0003139,120]
[346404430,1734944388640,-151.0,0.00031452,120]
[346404431,1734944388667,-6250.0,0.00031963,120]
[346404432,1734944388693,-1500.0,0.00032,120]
[346404433,1734944388886,-575.20018762,0.00032,120]
[346404434,1734944388912,-6288.74524161,0.00032,120]
[346404435,1734944388937,-5723.43994473,0.00032,120]
[346404436,1734944388963,-262.844,0.000321,120]
[346404437,1734944388993,-22045.338,0.000325,120]
[346404438,1734944389021,-22045.338,0.000325,120]
[346404439,1734944389047,-22045.338,0.000325,120]
[346404440,1734944389073,-18414.80727315,0.000325,120]
[346404441,1734944393226,-3630.53072685,0.000325,120]
[346404442,1734944393266,-22045.339,0.000325,120]
[346404443,1734944393291,-151.0,0.00032521,120]
[346404444,1734944393319,-465.429,0.0003259,120]
[346404445,1734944393346,-500.0,0.00032876,45]
[346404446,1734944393372,-500.0,0.00032876,49]
[346404447,1734944393397,-558.44301765,0.00032876,53]
[346404448,1734944393423,-408.31475461,0.00032877,60]
[346404449,1734944412248,-1579.92236987,0.00021347,120]
[346404450,1734944412278,-2522.67256784,0.00021347,120]
[346404451,1734944412307,-1001.22573352,0.00021347,30]
[346404452,1734944412335,-630.2458476,0.00021347,120]
[346404453,1734944412364,-328318.56145367,0.00021347,120]
[346404454,1734944412391,-38618.23908867,0.00021347,30]
[346404455,1734944412423,-4966.999999,0.00021347,30]
[346404456,1734944412477,-5869.34776119,0.00021347,30]
[346404457,1734944412532,-19855.78815482,0.00021347,32]
[346404458,1734944412588,-49084.73169767,0.00021347,30]
[346404459,1734944412643,-30000.0,0.00021347,120]
[346404460,1734944412693,-17552.26532615,0.00021347,120]
[346404461,1734944428802,-110431.86250354,0.00021347,120]
[346404462,1734944428827,-280.0,0.00021347,120]
[346404463,1734944428853,-29174.81743207,0.00021347,120]
[346404464,1734944428878,-1486.30829869,0.00021347,120]
[346404465,1734944428903,-22189.80984577,0.00021347,120]
[346404466,1734944428929,-156.0,0.00021347,30]
[346404467,1734944428955,-3000.0,0.00021347,120]
[346404468,1734944428981,-40000.0,0.00021347,120]
[346404469,1734944429005,-9867.42891985,0.00021347,60]
[346404470,1734944429030,-17223.79683469,0.00021347,120]
[346404471,1734944429056,-22979.24920883,0.00021347,120]
[346404472,1734944429080,-500.0,0.00021347,120]
[346404473,1734944429106,-38609.25401071,0.00021347,120]
[346404474,1734944429131,-10643.94933855,0.00021347,120]
[346404475,1734944429156,-1387.67956591,0.00021347,30]
[346404476,1734944429180,-829.62803115,0.00021347,30]
[346404477,1734944429205,-1220.25643526,0.00021347,30]
[346404478,1734944429229,-3162.29866727,0.00021347,30]
[346404479,1734944429253,-237.85501883,0.00021347,30]
[346404480,1734944429277,-1775.85871925,0.00021347,30]
[346404481,1734944429301,-1813.07829375,0.00021347,30]
[346404482,1734944429324,-22165.14499035,0.00021347,30]
[346404483,1734944429349,-180.0,0.00021347,120]
[346404484,1734944429373,-1000.0,0.00021347,120]
[346404485,1734944429397,-7407.63594769,0.00021347,120]
[346404486,1734944429421,-1481.28436755,0.00021347,120]
[346404487,1734944429445,-5109.38073386,0.00021347,120]
[346404488,1734944429470,-3257.97558399,0.00021347,120]
[346404489,1734944429492,-1175.4043052,0.00021347,120]
[346404490,1734944429516,-671.82678312,0.00021347,120]
[346404491,1734944429541,-313.68042423,0.00021347,120]
[346404492,1734944429565,-329.12015815,0.00021347,120]
[346404493,1734944429589,-302.08284096,0.00021347,120]
[346404494,1734944429612,-211.14040999,0.00021347,120]
[346404495,1734944429636,-181.93391101,0.00021347,120]
[346404496,1734944429660,-191.29507281,0.00021347,120]
[346404497,1734944429683,-4150.0,0.00021347,120]
[346404498,1734944429709,-176.16709856,0.00021347,120]
[346404499,1734944429734,-9795.85958708,0.00021347,30]
[346404500,1734944429759,-1293.0938457,0.00021347,120]
[346404501,1734944429784,-4000000.0,0.00021347,90]
[346404502,1734944429809,-623637.84281563,0.00021347,30]
[346404503,1734944440322,-4378033.6116078,0.00021347,30]
[346404504,1734944440349,-2333.0,0.00021347,120]
[346404505,1734944440376,-115109.2486064,0.00021347,120]
[346404506,1734944440402,-504524.1397858,0.00021347,120]
[346404507,1734944449794,-299012.36383687,0.00021347,120]
[346404508,1734944449822,-266.27667973,0.00021347,60]
[346404509,1734944449848,-150.0,0.00021347,30]
[346404510,1734944449875,-392.8,0.00021347,60]
[346404511,1734944449902,-392.8,0.00021347,90]
[346404512,1734944449928,-392.8,0.00021347,120]
[346404513,1734944449955,-1236.33801981,0.00021347,120]
[346404514,1734944449982,-5000.0,0.00021347,30]
[346404515,1734944450006,-590.219999,0.00021347,120]
[346404516,1734944450032,-1160.28545009,0.00021347,120]
[346404517,1734944450059,-219.88727655,0.00021347,120]
[346404518,1734944450084,-375761.45367384,0.00021347,60]
[346404519,1734944450109,-17396.63074958,0.00021347,30]
[346404520,1734944450134,-1386.56046733,0.00021347,120]
[346404521,1734944450159,-178.89829371,0.00021347,120]
[346404522,1734944450185,-256660.75750336,0.00021347,30]
[346404523,1734944450211,-82710.77380126,0.00021347,60]
[346404524,1734944450237,-1521.31965115,0.00021347,120]
[346404525,1734944450263,-963.06058771,0.00021347,30]
[346404526,1734944450289,-249999.99999901,0.00021347,60]
[346404527,1734944450316,-27144.22605043,0.00021347,120]
[346404528,1734944450343,-6546.38926715,0.00021347,120]
[346404529,1734944450369,-188.0,0.00021347,30]
[346404530,1734944450395,-412.77936929,0.00021347,120]
[346404531,1734944450420,-1464.59352329,0.00021347,60]
[346404532,1734944450445,-2000.0,0.00021347,30]
[346404533,1734944450471,-216.21780916,0.00021347,60]
[346404534,1734944450496,-8599.70437602,0.00021347,60]
[346404535,1734944450522,-815.5,0.00021347,30]
[346404536,1734944450547,-1030.46374874,0.00021347,120]
[346404537,1734944450573,-2000.0,0.00021347,30]
[346404538,1734944450598,-5094.79466401,0.00021347,120]
[346404539,1734944450623,-939.11545849,0.00021347,120]
[346404540,1734944450651,-715443.57872532,0.00021347,32]
[346404541,1734944450676,-168.28725422,0.00021347,120]
[346404542,1734944450701,-21675.22712982,0.00021347,120]
[346404543,1734944450727,-18894.43679445,0.00021347,90]
[346404544,1734944450751,-151.0,0.00021347,30]
[346404545,1734944450777,-172.710723,0.00021347,30]
[346404546,1734944450802,-250.0,0.00021347,30]
[346404547,1734944450829,-250.0,0.00021347,30]
[346404548,1734944450854,-250.0,0.00021347,30]
[346404549,1734944450880,-250.0,0.00021347,30]
[346404550,1734944450905,-250.0,0.00021347,30]
[346404551,1734944450938,-250.0,0.00021347,30]
[346404552,1734944451123,-250.0,0.00021347,30]
[346404553,1734944451150,-250.0,0.00021347,30]
[346404554,1734944451176,-250.0,0.00021347,30]
[346404555,1734944451202,-250.0,0.00021347,30]
[346404556,1734944451227,-250.0,0.00021347,30]
[346404557,1734944451251,-250.0,0.00021347,30]
[346404558,1734944561845,258.149341,0.00022,120]
[346404559,1734944562153,775.5,0.00022,120]
[346404604,1734945032481,-185.6284939,0.0001186,2]
[346404606,1734945032490,-250.0,0.000119,2]
[346404608,1734945032500,-979.9521427,0.00011947,2]
[346404610,1734945032510,-2557.43076195,0.0001198,2]
[346404612,1734945032538,-156.22804535,0.0001198,2]
[346404614,1734945032548,-196.10403568,0.00012593,2]
[346404616,1734945032558,-300.0,0.00012693,2]
[346404618,1734945032567,-300.0,0.00012693,2]
[346404620,1734945032576,-4339.71873247,0.00012694,2]
[346404712,1734945038563,-20560.28126753,0.00012694,2]
[346404714,1734945038572,-223.84076019,0.0001292,2]
[346404716,1734945038581,-514.444,0.0001302,2]
[346404718,1734945038591,-10571.36585313,0.00013194,2]
[346404719,1734945038600,-243.58622654,0.00013368,2]
[346404720,1734945038610,-243.58622648,0.00013444,2]
[346404722,1734945038619,-170.0,0.00013468,2]
[346404724,1734945038628,-238.6690627,0.00013561,2]
[346404726,1734945038638,-300.0,0.000136,2]
[346404728,1734945038647,-300.0,0.000136,2]
[346404730,1734945038656,-152.0,0.00013669,2]
[346404732,1734945038666,-576.13133708,0.00013673,2]
[346404734,1734945038675,-500.0,0.00013673,2]
[346404736,1734945038685,-500.0,0.00013673,2]
[346404741,1734945038695,-500.0,0.00013673,2]
[346404744,1734945038705,-500.0,0.00013673,2]
[346404747,1734945038714,-500.0,0.00013673,2]
[346404748,1734945038723,-500.0,0.00013673,2]
[346404751,1734945038732,-500.0,0.00013673,2]
[346404753,1734945038742,-302.0,0.00013697,2]
[346404755,1734945038751,-640.02207524,0.00013697,2]
[346404756,1734945038760,-409.82118106,0.00013697,2]
[346404759,1734945038771,-501.73745877,0.00013698,2]
[346404761,1734945038782,-500.0,0.00013698,2]
[346404763,1734945038792,-157.11539901,0.00013698,2]
[346404765,1734945038801,-500.0,0.00013698,2]
[346404767,1734945038810,-500.0,0.00013698,2]
[346404768,1734945038819,-493.99856091,0.00013698,2]
[346404770,1734945038828,-500.0,0.00013698,2]
[346404772,1734945038837,-500.0,0.00013698,2]
[346404774,1734945038846,-500.0,0.00013698,2]
[346404776,1734945038855,-500.0,0.00013698,2]
[346404779,1734945038864,-500.0,0.00013698,2]
[346404781,1734945038873,-502.73635605,0.00013698,2]
[346404782,1734945038883,-500.49638502,0.00013698,2]
[346404785,1734945038896,-500.0,0.00013698,2]
[346404787,1734945038905,-500.0,0.00013698,2]
[346404789,1734945038914,-500.0,0.00013698,2]
[346404791,1734945038923,-506.48522656,0.00013698,2]
[346404793,1734945038933,-500.0,0.00013698,2]
[346404795,1734945038942,-500.0,0.00013698,2]
[346404797,1734945038951,-500.0,0.00013698,2]
[346404799,1734945038959,-500.0,0.00013698,2]
[346404801,1734945038968,-500.0,0.00013698,2]
[346404803,1734945038978,-500.0,0.00013698,2]
[346404805,1734945038987,-500.0,0.00013698,2]
[346404807,1734945038996,-500.0,0.00013698,2]
[346404809,1734945039005,-500.0,0.00013698,2]
[346404811,1734945039017,-500.0,0.00013698,2]
[346404813,1734945039028,-500.0,0.00013698,2]
[346404815,1734945039037,-167.58874608,0.00013698,2]
[346404817,1734945039046,-500.0,0.00013698,2]
[346404819,1734945039055,-506.01335264,0.00013698,2]
[346404821,1734945039064,-500.0,0.00013698,2]
[346404822,1734945039074,-500.0,0.00013698,2]
[346404825,1734945039085,-500.0,0.00013698,2]
[346404827,1734945039094,-592.9,0.00013698,2]
[346404829,1734945039104,-500.0,0.00013698,2]
[346404831,1734945039113,-500.0,0.00013698,2]
[346404833,1734945039123,-500.0,0.00013698,2]
[346404834,1734945039131,-500.0,0.00013698,2]
[346404836,1734945039141,-500.0,0.00013698,2]
[346404838,1734945039150,-500.0,0.00013698,2]
[346404840,1734945039159,-500.0,0.00013698,2]
[346404842,1734945039168,-500.0,0.00013698,2]
[346404844,1734945039178,-500.0,0.00013698,2]
[346404846,1734945039188,-500.0,0.00013698,2]
[346404848,1734945039197,-500.0,0.00013698,2]
[346404850,1734945039206,-500.0,0.00013698,2]
[346404852,1734945039216,-500.0,0.00013698,2]
[346404854,1734945039225,-500.0,0.00013698,2]
[346404856,1734945039235,-500.0,0.00013698,2]
[346404858,1734945039244,-500.0,0.00013698,2]
[346404860,1734945039254,-500.0,0.00013698,2]
[346404862,1734945039263,-500.0,0.00013698,2]
[346404864,1734945039273,-500.0,0.00013698,2]
[346404866,1734945039283,-500.0,0.00013698,2]
[346404868,1734945039292,-500.0,0.00013698,2]
[346404870,1734945039302,-500.0,0.00013698,2]
[346404872,1734945039311,-500.0,0.00013698,2]
[346404874,1734945039320,-603.11,0.00013698,2]
[346404876,1734945039330,-500.0,0.00013698,2]
[346404878,1734945039339,-501.44350995,0.00013698,2]
[346404880,1734945039348,-500.96674957,0.00013698,2]
[346404882,1734945039357,-500.0,0.00013698,2]
[346404884,1734945039366,-455.46566295,0.00013698,2]
[346404886,1734945039375,-518.41305348,0.00013698,2]
[346404888,1734945039384,-500.0,0.00013698,2]
[346404890,1734945039393,-500.0,0.00013698,2]
[346404892,1734945039403,-500.0,0.00013698,2]
[346404894,1734945039412,-500.0,0.00013698,2]
[346404896,1734945039421,-500.0,0.00013698,2]
[346404898,1734945039430,-500.0,0.00013698,2]
[346404900,1734945039441,-500.76392049,0.00013698,2]
[346404902,1734945039450,-500.0,0.00013698,2]
[346404904,1734945039459,-500.0,0.00013698,2]
[346404906,1734945039468,-500.0,0.00013698,2]
[346404908,1734945039477,-500.0,0.00013698,2]
[346404910,1734945039487,-500.0,0.00013698,2]
[346404912,1734945039496,-500.0,0.00013698,2]
[346404913,1734945039505,-500.0,0.00013698,2]
[346404914,1734945039515,-500.0,0.00013698,2]
[346404915,1734945039525,-514.46007709,0.00013698,2]
[346404916,1734945039534,-500.0,0.00013698,2]
[346404917,1734945039543,-500.0,0.00013698,2]
[346404918,1734945039553,-500.0,0.00013698,2]
[346404919,1734945039563,-500.0,0.00013698,2]
[346404920,1734945039572,-500.0,0.00013698,2]
[346404921,1734945039581,-500.0,0.00013698,2]
[346404922,1734945039591,-500.0,0.00013698,2]
[346404923,1734945039600,-500.0,0.00013698,2]
[346404924,1734945039609,-500.0,0.00013698,2]
[346404925,1734945039618,-500.0,0.00013698,2]
[346404927,1734945039627,-500.0,0.00013698,2]
[346404929,1734945039637,-500.0,0.00013698,2]
[346404931,1734945039646,-500.0,0.00013698,2]
[346404933,1734945039656,-500.0,0.00013698,2]
[346404935,1734945039665,-500.0,0.00013698,2]
[346404937,1734945039674,-698.79,0.00013698,2]
[346404939,1734945039684,-501.83585099,0.00013698,2]
[346404941,1734945039693,-500.0,0.00013698,2]
[346404943,1734945039702,-500.0,0.00013698,2]
[346404945,1734945039711,-500.0,0.00013698,2]
[346404947,1734945039721,-500.0,0.00013698,2]
[346404949,1734945039730,-500.0,0.00013698,2]
[346404952,1734945039740,-500.0,0.00013698,2]
[346404955,1734945039749,-500.0,0.00013698,2]
[346404958,1734945039758,-500.0,0.00013698,2]
[346404960,1734945039768,-500.0,0.00013698,2]
[346404962,1734945039780,-501.28864682,0.00013698,2]
[346404964,1734945039790,-500.0,0.00013698,2]
[346404966,1734945039799,-500.0,0.00013698,2]
[346404968,1734945039809,-469.97478771,0.00013698,2]
[346404970,1734945039819,-500.0,0.00013698,2]
[346404972,1734945039829,-500.0,0.00013698,2]
[346404974,1734945039839,-500.0,0.00013698,2]
[346404976,1734945039848,-500.0,0.00013698,2]
[346404978,1734945039857,-500.0,0.00013698,2]
[346404980,1734945039867,-500.0,0.00013698,2]
[346404982,1734945039876,-500.0,0.00013698,2]
[346404984,1734945039886,-598.86987115,0.00013698,2]
[346404986,1734945039895,-500.0,0.00013698,2]
[346404988,1734945039905,-500.0,0.00013698,2]
[346404990,1734945039915,-500.0,0.00013698,2]
[346404992,1734945039924,-500.0,0.00013698,2]
[346404994,1734945039933,-500.0,0.00013698,2]
[346404996,1734945039943,-500.0,0.00013698,2]
[346404998,1734945039952,-500.0,0.00013698,2]
[346405000,1734945039961,-500.0,0.00013698,2]
[346405002,1734945039970,-500.0,0.00013698,2]
[346405004,1734945039980,-500.0,0.00013698,2]
[346405006,1734945039989,-1499.65,0.00013698,2]
[346405008,1734945039998,-500.0,0.00013698,2]
[346405010,1734945040008,-500.0,0.00013698,2]
[346405012,1734945040021,-685.74,0.00013698,2]
[346405014,1734945040032,-502.59849637,0.00013698,2]
[346405016,1734945040042,-500.0,0.00013698,2]
[346405018,1734945040051,-500.0,0.00013698,2]
[346405020,1734945040062,-500.0,0.00013698,2]
[346405022,1734945040071,-415.70121411,0.00013698,2]
[346405024,1734945040081,-500.0,0.00013698,2]
[346405026,1734945040092,-500.0,0.00013698,2]
[346405028,1734945040101,-500.0,0.00013698,2]
[346405030,1734945040110,-500.0,0.00013698,2]
[346405032,1734945040119,-500.0,0.00013698,2]
[346405034,1734945040128,-500.0,0.00013698,2]
[346405036,1734945040138,-500.0,0.00013698,2]
[346405054,1734945040299,-500.0,0.00013698,2]
[346405056,1734945040310,-500.0,0.00013698,2]
[346405058,1734945040319,-505.91,0.00013698,2]
[346405060,1734945040329,-550.63,0.00013698,2]
[346405062,1734945040338,-500.0,0.00013698,2]
[346405064,1734945040349,-500.0,0.00013698,2]
[346405066,1734945040358,-500.0,0.00013698,2]
[346405068,1734945040367,-500.0,0.00013698,2]
[346405070,1734945040376,-500.0,0.00013698,2]
[346405072,1734945040386,-500.0,0.00013698,2]
[346405074,1734945040395,-500.0,0.00013698,2]
[346405076,1734945040404,-500.0,0.00013698,2]
[346405078,1734945040414,-500.0,0.00013698,2]
[346405080,1734945040423,-500.0,0.00013698,2]
[346405082,1734945040433,-500.0,0.00013698,2]
[346405084,1734945040442,-500.0,0.00013698,2]
[346405086,1734945040451,-500.0,0.00013698,2]
[346405088,1734945040460,-500.0,0.00013698,2]
[346405090,1734945040469,-500.0,0.00013698,2]
[346405092,1734945040479,-500.0,0.00013698,2]
[346405094,1734945040488,-501.63108672,0.00013698,2]
[346405096,1734945040497,-500.0,0.00013698,2]
[346405098,1734945040506,-500.0,0.00013698,2]
[346405100,1734945040515,-500.0,0.00013698,2]
[346405102,1734945040526,-500.0,0.00013698,2]
[346405104,1734945040535,-500.0,0.00013698,2]
[346405106,1734945040544,-500.0,0.00013698,2]
[346405108,1734945040553,-602.35,0.00013698,2]
[346405109,1734945040562,-500.0,0.00013698,2]
[346405111,1734945040571,-505.82385222,0.00013698,2]
[346405113,1734945040581,-500.0,0.00013698,2]
[346405114,1734945040590,-591.81,0.00013698,2]
[346405116,1734945040600,-500.0,0.00013698,2]
[346405117,1734945040609,-500.0,0.00013698,2]
[346405119,1734945040618,-500.0,0.00013698,2]
[346405121,1734945040627,-500.0,0.00013698,2]
[346405122,1734945040636,-553.69,0.00013698,2]
[346405123,1734945040646,-500.0,0.00013698,2]
[346405125,1734945040655,-500.0,0.00013698,2]
[346405127,1734945040664,-500.0,0.00013698,2]
[346405129,1734945040673,-507.76036853,0.00013698,2]
[346405130,1734945040683,-500.0,0.00013698,2]
[346405131,1734945040692,-500.0,0.00013698,2]
[346405132,1734945040701,-500.0,0.00013698,2]
[346405133,1734945040710,-500.0,0.00013698,2]
[346405134,1734945040719,-1483.57,0.00013698,2]
[346405135,1734945040729,-500.0,0.00013698,2]
[346405136,1734945040738,-500.0,0.00013698,2]
[346405137,1734945040747,-500.0,0.00013698,2]
[346405138,1734945040756,-502.6707306,0.00013698,2]
[346405139,1734945040765,-500.0,0.00013698,2]
[346405140,1734945040775,-500.0,0.00013698,2]
[346405141,1734945040784,-500.0,0.00013698,2]
[346405142,1734945040794,-500.0,0.00013698,2]
[346405143,1734945040803,-500.0,0.00013698,2]
[346405144,1734945040812,-624.7826615,0.00013698,2]
[346405145,1734945040822,-500.0,0.00013698,2]
[346405146,1734945040831,-871.63,0.00013698,2]
[346405147,1734945040840,-500.0,0.00013698,2]
[346405148,1734945040849,-500.0,0.00013698,2]
[346405149,1734945040858,-500.0,0.00013698,2]
[346405150,1734945040867,-500.0,0.00013698,2]
[346405151,1734945040877,-500.0,0.00013698,2]
[346405152,1734945040887,-500.0,0.00013698,2]
[346405154,1734945040896,-500.0,0.00013698,2]
[346405155,1734945040905,-500.0,0.00013698,2]
[346405156,1734945040915,-500.0,0.00013698,2]
[346405157,1734945040924,-500.0,0.00013698,2]
[346405158,1734945040932,-168.0,0.00013698,2]
[346405159,1734945040942,-733.52,0.00013698,2]
[346405160,1734945040951,-500.0,0.00013698,2]
[346405161,1734945040961,-500.0,0.00013698,2]
[346405163,1734945040970,-500.0,0.00013698,2]
[346405165,1734945040979,-500.0,0.00013698,2]
[346405167,1734945040988,-500.0,0.00013698,2]
[346405168,1734945040998,-500.0,0.00013698,2]
[346405169,1734945041007,-500.0,0.00013698,2]
[346405170,1734945041020,-500.0,0.00013698,2]
[346405171,1734945041030,-500.0,0.00013698,2]
[346405172,1734945041039,-500.0,0.00013698,2]
[346405173,1734945041048,-500.0,0.00013698,2]
[346405174,1734945041059,-500.0,0.00013698,2]
[346405175,1734945041068,-777.66,0.00013698,2]
[346405176,1734945041077,-500.0,0.00013698,2]
[346405177,1734945041086,-500.0,0.00013698,2]
[346405178,1734945041098,-500.0,0.00013698,2]
[346405179,1734945041108,-911.97,0.00013698,2]
[346405180,1734945041117,-509.95024533,0.00013698,2]
[346405181,1734945041126,-500.0,0.00013698,2]
[346405182,1734945041135,-538.63,0.00013698,2]
[346405183,1734945041145,-500.0,0.00013698,2]
[346405184,1734945041154,-175.50492288,0.00013698,2]
[346405185,1734945041163,-500.0,0.00013698,2]
[346405186,1734945041171,-500.0,0.00013698,2]
[346405187,1734945041181,-500.0,0.00013698,2]
[346405188,1734945041190,-500.0,0.00013698,2]
[346405189,1734945041198,-500.0,0.00013698,2]
[346405190,1734945041207,-500.0,0.00013698,2]
[346405191,1734945041216,-500.0,0.00013698,2]
[346405192,1734945041225,-500.0,0.00013698,2]
[346405193,1734945041235,-500.0,0.00013698,2]
[346405194,1734945041244,-500.0,0.00013698,2]
[346405195,1734945041253,-500.0,0.00013698,2]
[346405196,1734945041262,-500.0,0.00013698,2]
[346405197,1734945041271,-500.0,0.00013698,2]
[346405198,1734945041282,-500.0,0.00013698,2]
[346405199,1734945041291,-500.0,0.00013698,2]
[346405200,1734945041299,-500.0,0.00013698,2]